bitfinex-derivatives/quotes_SOLF0:USTF0_20230103
["timestamp","ask_amount","ask_price","bid_price","bid_amount"]
[1672742996935,3.78658939,11.89,11.88,0.06878436]
[1672742999880,16.76,11.891,11.88,0.06878436]
[1672743006716,16.7,11.893,11.88,16.79878436]
[1672743007032,4.0,11.892,11.882,0.06911077]
[1672743011022,3.88647015,11.892,11.882,0.06911077]
[1672743011435,20.7,11.893,11.882,0.06911077]
[1672743011436,16.7,11.893,11.882,0.06911077]
[1672743014277,48.7107,11.894,11.882,16.82911077]
[1672743025300,48.47926442,11.894,11.882,16.82911077]
[1672743025619,48.47926442,11.894,11.883,4.0]
[1672743025824,591.71,11.896,11.883,4.0]
[1672743026037,591.71,11.896,11.885,0.06043957]
[1672743026250,4.0,11.895,11.885,0.06043957]
[1672743029614,16.74,11.894,11.885,0.06043957]
[1672743029824,4.0,11.893,11.885,0.06043957]
[1672743030559,53.3084,11.893,11.885,0.06043957]
[1672743041175,16.76,11.89,11.885,3.957e-05]
[1672743041387,4.0,11.889,11.885,3.957e-05]
[1672743043487,16.76,11.887,11.885,3.957e-05]
[1672743043697,4.0,11.886,11.873,49.7684]
[1672743043908,16.76,11.884,11.873,49.7684]
[1672743044123,4.0,11.883,11.871,16.67]
[1672743044859,0.06455724,11.881,11.873,0.07133961]
[1672743058105,4.0,11.883,11.881,0.0956563]
[1672743058419,4.0,11.883,11.871,16.67]
[1672743059153,0.06763645,11.881,11.871,16.67]
[1672743059363,0.06763645,11.881,11.873,0.06428892]
[1672743063352,16.73763645,11.881,11.873,0.06428892]
[1672743063565,4.0,11.88,11.873,0.06428892]
[1672743063774,52.5937,11.88,11.873,0.06428892]
[1672743068501,52.5937,11.88,11.873,8.892e-05]
[1672743070493,16.71,11.877,11.873,8.892e-05]
[1672743070704,4.0,11.876,11.873,8.892e-05]
[1672743070918,4.0,11.876,11.87,0.06712519]
[1672743071234,4.0,11.873,11.87,0.06712519]
[1672743071441,4.0,11.873,11.867,0.06876777]
[1672743082589,3.8121284,11.873,11.867,0.06876777]
[1672743083218,0.09618345,11.867,11.862,16.76]
[1672743084373,8.345e-05,11.867,11.863,4.0]
[1672743084899,8.345e-05,11.867,11.862,16.76]
[1672743085109,0.07098488,11.869,11.862,16.76]
[1672743086056,16.76,11.881,11.868,16.69]
[1672743086262,4.0,11.88,11.87,16.76]
[1672743087001,0.07014033,11.879,11.871,0.06486765]
[1672743099087,16.76,11.88,11.879,0.05541167]
[1672743101497,4.0,11.879,11.875,0.06283054]
[1672743101714,4.0,11.879,11.867,16.76]
[1672743102761,0.06111879,11.877,11.869,0.07053827]
[1672743116221,16.76,11.88,11.877,0.13353399]
[1672743118744,4.0,11.879,11.874,0.0683058]
[1672743122948,20.76,11.879,11.874,5.8e-06]
[1672743123369,20.76,11.879,11.865,66.75]
[1672743124316,0.06198626,11.876,11.868,0.06133498]
[1672743133456,16.76198626,11.876,11.868,0.06133498]
[1672743135034,4.0,11.875,11.868,0.06133498]
[1672743137658,3.88172609,11.875,11.868,0.06133498]
[1672743139551,16.76198626,11.876,11.868,0.06133498]
[1672743145019,16.71,11.874,11.868,0.06133498]
[1672743145230,16.76,11.871,11.858,63.8366]
[1672743145438,4.0,11.87,11.858,63.8366]
[1672743146069,4.0,11.87,11.858,16.73]
[1672743146274,0.06112868,11.868,11.86,0.06532316]
[1672743157001,0.06112868,11.868,11.86,16.75532316]
[1672743157944,20.71,11.873,11.868,0.17312787]
[1672743160361,16.71,11.873,11.868,0.17312787]
[1672743160992,63.26353744,11.875,11.868,0.17312787]
[1672743172865,63.12952178,11.875,11.868,0.17312787]
[1672743184422,46.36952178,11.875,11.868,0.17312787]
[1672743184631,0.06793744,11.875,11.868,16.93312787]
[1672743187786,49.7432,11.88,11.875,0.13549423]
[1672743188101,16.76,11.878,11.875,0.13549423]
[1672743188306,4.0,11.877,11.868,0.17312787]
[1672743188725,4.06780266,11.877,11.868,0.24390084]
[1672743201649,0.06780266,11.877,11.868,0.24390084]
[1672743202388,16.76,11.878,11.877,0.05012712]
[1672743205435,4.0,11.877,11.868,0.17312787]
[1672743205643,16.71,11.876,11.868,0.17312787]
[1672743205853,4.0,11.875,11.868,0.17312787]
[1672743208271,4.0,11.875,11.868,2.787e-05]
[1672743219304,16.76,11.874,11.868,2.787e-05]
[1672743219616,4.0,11.873,11.868,2.787e-05]
[1672743222143,3.8031715,11.873,11.868,2.787e-05]
[1672743223725,3.8031715,11.873,11.867,0.06451704]
[1672743224034,16.76,11.874,11.867,0.06451704]
[1672743232019,20.71,11.873,11.867,0.06451704]
[1672743232232,16.71,11.87,11.857,47.1006]
[1672743232444,4.0,11.869,11.857,47.1006]
[1672743232969,4.0,11.869,11.856,16.73]
[1672743233181,0.0637576,11.867,11.858,0.0675541]
[1672743237176,0.09643804,11.858,11.856,16.73]
[1672743240645,0.06011042,11.861,11.856,16.73]
[1672743245799,0.06011042,11.861,11.855,50.0]
[1672743250107,0.06011042,11.861,11.853,16.82001856]
[1672743250320,0.06011042,11.861,11.855,50.0]
[1672743251475,0.06011042,11.861,11.853,0.06001856]
[1672743252000,0.06011042,11.861,11.855,50.0]
[1672743253051,0.06011042,11.861,11.854,50.0]
[1672743254631,16.76,11.864,11.861,0.16635569]
[1672743268288,16.67987333,11.864,11.861,0.16635569]
[1672743281000,16.51883623,11.864,11.861,0.16635569]
[1672743281519,4.0,11.863,11.858,0.06308663]
[1672743283940,20.68,11.863,11.858,0.06308663]
[1672743284152,20.68,11.863,11.858,8.663e-05]
[1672743289306,4.0,11.863,11.858,8.663e-05]
[1672743290669,16.71,11.865,11.858,8.663e-05]
[1672743293932,4.0,11.864,11.858,8.663e-05]
[1672743296453,20.79,11.864,11.858,8.663e-05]
[1672743297508,20.69380374,11.864,11.858,8.663e-05]
[1672743307482,0.06471617,11.867,11.863,16.75]
[1672743307698,49.922,11.876,11.865,16.78]
[1672743308014,4.0,11.875,11.865,16.78]
[1672743308537,0.06394242,11.874,11.866,0.06537092]
[1672743315162,0.1735296,11.866,11.863,16.79]
[1672743318418,0.06725614,11.869,11.863,16.79]
[1672743320519,49.922,11.876,11.866,16.79]
[1672743320728,16.79,11.879,11.867,4.0]
[1672743321040,4.0,11.881,11.869,16.75]
[1672743321250,4.0,11.881,11.87,4.0]
[1672743321670,0.06805853,11.88,11.871,0.06498946]
[1672743335439,16.71,11.882,11.88,0.10876703]
[1672743337750,4.0,11.881,11.877,0.06274668]
[1672743338694,4.0,11.881,11.869,16.75]
[1672743339535,0.06578109,11.879,11.871,0.06649935]
[1672743341742,16.79,11.878,11.871,0.06649935]
[1672743342057,4.0,11.877,11.871,0.06649935]
[1672743344685,66.9995,11.878,11.871,0.06649935]
[1672743348784,66.9995,11.878,11.871,9.935e-05]
[1672743348995,16.73,11.872,11.871,9.935e-05]
[1672743349205,16.73,11.872,11.859,16.63]
[1672743349626,4.0,11.871,11.859,16.63]
[1672743349840,0.06840161,11.869,11.861,0.0707045]
[1672743351622,0.06779779,11.861,11.859,16.63]
[1672743359291,0.06779779,11.861,11.857,16.78]
[1672743366649,0.06647351,11.864,11.861,0.09511511]
[1672743366963,0.06568433,11.867,11.861,0.09511511]
[1672743380938,16.71,11.868,11.867,0.05206942]
[1672743394708,16.52367786,11.868,11.867,0.05206942]
[1672743397126,4.0,11.867,11.863,0.06753111]
[1672743397855,4.0,11.867,11.863,3.111e-05]
[1672743398071,4.0,11.867,11.861,0.09511511]
[1672743399964,4.0,11.867,11.86,0.00541234]
[1672743400277,4.0,11.865,11.851,591.79]
[1672743400487,4.0,11.865,11.855,50.0]
[1672743401328,0.06374264,11.864,11.856,0.06517928]
[1672743413419,50.5934,11.865,11.864,0.02963976]
[1672743413733,46.5934,11.865,11.864,0.02963976]
[1672743422246,4.0,11.864,11.86,0.06838589]
[1672743424143,50.5934,11.865,11.86,0.06838589]
[1672743426773,4.0,11.864,11.851,16.79]
[1672743427509,0.06161659,11.862,11.853,0.06244602]
[1672743428559,0.06161659,11.862,11.853,0.00216861]
[1672743430237,16.79,11.866,11.853,0.00216861]
[1672743430238,16.79,11.872,11.86,16.79]
[1672743430454,4.0,11.871,11.86,16.79]
[1672743431399,0.06473971,11.869,11.861,0.06803088]
[1672743442858,4.0,11.871,11.869,0.00691237]
[1672743443696,4.0,11.871,11.86,16.79]
[1672743444012,16.85475762,11.87,11.861,0.06187306]
[1672743444326,4.0,11.869,11.861,0.06634792]
[1672743444538,16.79,11.865,11.861,0.06634792]
[1672743444845,4.0,11.864,11.861,0.06634792]
[1672743445060,4.0,11.864,11.858,0.06662421]
[1672743445270,4.0,11.864,11.857,0.06054127]
[1672743445481,4.0,11.864,11.856,0.07031171]
[1672743447160,16.71,11.863,11.856,0.07031171]
[1672743447370,4.0,11.862,11.856,0.07031171]
[1672743469244,16.79,11.86,11.856,0.07031171]
[1672743469457,4.0,11.859,11.856,0.07031171]
[1672743469667,4.0,11.859,11.853,0.06312814]
[1672743469980,4.0,11.859,11.852,0.06837242]
[1672743470192,4.0,11.859,11.851,0.06594328]
[1672743470402,4.06754792,11.859,11.851,0.06594328]
[1672743473136,0.06754792,11.859,11.851,0.06594328]
[1672743488065,0.16778288,11.851,11.847,16.79]
[1672743488377,8.288e-05,11.851,11.848,4.0]
[1672743488800,8.288e-05,11.851,11.847,20.79]
[1672743489011,8.288e-05,11.851,11.847,16.79]
[1672743498577,8.288e-05,11.851,11.845,50.0616168]
[1672743498785,8.288e-05,11.851,11.845,0.0616168]
[1672743501097,16.86069794,11.853,11.851,0.15709191]
[1672743501308,4.0,11.852,11.84,47.7721]
[1672743501518,0.06169594,11.85,11.842,0.06087912]
[1672743501727,4.06169594,11.85,11.842,0.06087912]
[1672743510763,0.06169594,11.85,11.842,0.06087912]
[1672743511184,0.06169594,11.85,11.845,50.0]
[1672743511809,0.06169594,11.85,11.842,0.06087912]
[1672743513600,0.06169594,11.85,11.845,50.0]
[1672743513809,0.06169594,11.85,11.842,0.06087912]
[1672743514126,0.06169594,11.85,11.845,50.0]
[1672743515806,4.0,11.854,11.85,0.04313055]
[1672743516124,4.0,11.856,11.85,0.04313055]
[1672743518328,63.39065743,11.857,11.85,0.04313055]
[1672743524947,46.67065743,11.857,11.85,0.04313055]
[1672743525684,0.07085743,11.857,11.85,0.04313055]
[1672743530413,16.79,11.86,11.857,0.0807936]
[1672743532728,4.0,11.859,11.854,0.06627135]
[1672743533357,0.02140345,11.854,11.85,0.04313055]
[1672743542501,16.79,11.852,11.85,0.04313055]
[1672743542817,4.0,11.851,11.838,4.0]
[1672743543441,4.0,11.851,11.837,20.79]
[1672743543657,504.81140345,11.868,11.838,4.0]
[1672743543867,0.06484619,11.857,11.849,0.06965019]
[1672743544081,16.79,11.851,11.849,0.07131999]
[1672743544397,16.79,11.851,11.846,50.07128192]
[1672743544711,4.0,11.851,11.846,0.07128192]
[1672743545865,16.79384764,11.854,11.846,0.07128192]
[1672743546285,16.79384764,11.854,11.846,50.07128192]
[1672743549966,16.79384764,11.854,11.846,0.07128192]
[1672743550280,67.38934764,11.854,11.846,50.07128192]
[1672743550598,16.79384764,11.854,11.846,50.07128192]
[1672743551756,16.79,11.852,11.846,50.07128192]
[1672743551966,4.0,11.851,11.846,50.07128192]
[1672743555747,16.79,11.852,11.846,50.07128192]
[1672743566571,16.79,11.852,11.846,0.07128192]
[1672743569199,16.79,11.852,11.846,50.07128192]
[1672743578545,64.38974764,11.854,11.846,50.07128192]
[1672743578764,16.85384764,11.854,11.846,50.07128192]
[1672743583911,16.85384764,11.854,11.846,0.07128192]
[1672743584439,16.85384764,11.854,11.846,50.07128192]
[1672743585065,16.79,11.853,11.846,50.07128192]
[1672743585277,4.0,11.852,11.846,50.07128192]
[1672743588430,4.0,11.852,11.846,0.07128192]
[1672743588638,16.79,11.853,11.846,0.07128192]
[1672743589061,16.79,11.853,11.846,50.07128192]
[1672743590213,16.79,11.853,11.846,0.07128192]
[1672743591372,16.79,11.853,11.846,50.07128192]
[1672743593790,16.79,11.853,11.846,0.07128192]
[1672743594525,16.79,11.853,11.846,50.07128192]
[1672743596731,16.79,11.853,11.846,0.07128192]
[1672743597571,16.79,11.853,11.846,50.07128192]
[1672743598202,16.79,11.853,11.846,0.07128192]
[1672743599043,4.0,11.852,11.846,50.07128192]
[1672743602297,16.79,11.853,11.846,50.07128192]
[1672743603769,0.06384764,11.854,11.846,50.07128192]
[1672743604084,0.06384764,11.854,11.846,0.07128192]
[1672743608077,0.06384764,11.854,11.853,50.0]
[1672743608287,0.07061692,11.858,11.853,50.0]
[1672743608498,4.07061692,11.858,11.853,50.0]
[1672743609014,4.07061692,11.858,11.849,0.06446581]
[1672743609866,0.07061692,11.858,11.849,0.06446581]
[1672743610591,0.07061692,11.858,11.849,4.06446581]
[1672743610807,45.8891,11.866,11.857,4.0]
[1672743611645,16.79,11.87,11.865,50.0]
[1672743611856,16.79,11.87,11.863,0.06087332]
[1672743612069,16.79,11.87,11.866,50.0]
[1672743613121,0.06340008,11.872,11.866,50.0]
[1672743613332,0.06340008,11.872,11.864,0.06991057]
[1672743613541,0.06340008,11.872,11.866,50.0]
[1672743613754,0.06340008,11.872,11.864,0.06991057]
[1672743616271,0.06340008,11.872,11.866,50.0]
[1672743618485,16.79,11.87,11.866,50.0]
[1672743618693,4.0,11.869,11.866,50.0]
[1672743619110,16.79,11.87,11.864,0.06991057]
[1672743619954,16.85340008,11.872,11.864,0.06991057]
[1672743623001,0.06340008,11.872,11.864,0.06991057]
[1672743623527,62.6391,11.875,11.872,0.02351219]
[1672743625845,16.75,11.875,11.872,0.02351219]
[1672743626156,0.06830456,11.878,11.872,0.02351219]
[1672743626157,0.06830456,11.878,11.874,50.0]
[1672743626359,0.06830456,11.878,11.872,0.02351219]
[1672743626360,0.06830456,11.878,11.872,0.08562776]
[1672743628153,16.63,11.876,11.872,0.08562776]
[1672743628358,4.0,11.875,11.872,0.08562776]
[1672743628572,4.0,11.875,11.872,0.02351219]
[1672743630042,20.63,11.876,11.872,0.02351219]
[1672743630252,16.63,11.876,11.872,0.02351219]
[1672743632981,48.5571,11.877,11.872,0.02351219]
[1672743636454,48.5571,11.877,11.876,50.0]
[1672743636663,16.79,11.878,11.876,50.0]
[1672743637086,16.57592277,11.878,11.876,50.0]
[1672743638556,16.72,11.878,11.876,50.0]
[1672743651181,16.64906478,11.878,11.876,50.0]
[1672743654966,16.81340571,11.881,11.876,50.0]
[1672743656228,0.06340571,11.881,11.876,50.0]
[1672743657694,0.06340571,11.881,11.877,4.0]
[1672743658120,0.06340571,11.881,11.875,0.07002481]
[1672743659165,0.06340571,11.881,11.876,50.0]
[1672743663272,16.9,11.885,11.881,0.10791868]
[1672743663692,16.9,11.885,11.881,1.868e-05]
[1672743664007,4.0,11.884,11.876,50.0]
[1672743664422,4.06021115,11.884,11.876,50.0621392]
[1672743664953,4.06021115,11.884,11.877,50.0]
[1672743668630,4.06021115,11.884,11.876,0.0621392]
[1672743671255,0.06021115,11.884,11.877,50.0]
[1672743671465,0.06021115,11.884,11.878,4.0]
[1672743671778,0.06021115,11.884,11.877,50.0]
[1672743672097,0.06021115,11.884,11.876,0.0621392]
[1672743673569,0.06021115,11.884,11.877,50.0]
[1672743673778,0.06021115,11.884,11.878,4.0]
[1672743674092,0.06021115,11.884,11.877,50.0]
[1672743675461,0.06021115,11.884,11.878,4.0]
[1672743675986,0.06021115,11.884,11.877,50.0]
[1672743676931,16.9,11.885,11.884,0.04692904]
[1672743682181,0.06883327,11.889,11.884,0.04692904]
[1672743688284,0.06883327,11.889,11.887,50.0]
[1672743688494,0.06350546,11.892,11.887,50.0]
[1672743688701,4.0,11.893,11.887,50.0]
[1672743689116,3.80558167,11.893,11.887,50.0]
[1672743691225,16.79106343,11.894,11.887,50.0]
[1672743692905,4.0,11.893,11.887,50.0]
[1672743694276,16.85,11.892,11.887,50.0]
[1672743694487,4.0,11.891,11.887,50.0]
[1672743695431,4.0,11.891,11.884,0.11830356]
[1672743695641,16.82,11.889,11.884,0.11830356]
[1672743695852,16.85,11.886,11.877,50.0]
[1672743696062,4.0,11.885,11.877,50.0]
[1672743696794,4.07081856,11.885,11.877,50.0674699]
[1672743698270,4.07081856,11.885,11.877,0.0674699]
[1672743699319,4.07081856,11.885,11.877,50.0674699]
[1672743699951,0.07081856,11.885,11.877,50.0674699]
[1672743706780,0.07081856,11.885,11.877,0.0674699]
[1672743708261,0.07081856,11.885,11.877,50.0674699]
[1672743708782,16.85,11.886,11.885,0.11813613]
[1672743709410,16.9,11.887,11.885,0.11813613]
[1672743709730,4.0,11.885,11.882,0.06520943]
[1672743709940,4.0,11.885,11.879,0.06511575]
[1672743714460,4.06992714,11.886,11.879,0.06511575]
[1672743717190,0.06992714,11.886,11.879,0.06511575]
[1672743723924,0.09576476,11.879,11.877,50.0]
[1672743724237,4.0,11.885,11.877,50.0]
[1672743724972,4.06896196,11.885,11.877,50.07010106]
[1672743725184,0.06896196,11.885,11.877,0.07010106]
[1672743725709,0.06896196,11.885,11.877,4.07010106]
[1672743726540,20.9,11.895,11.881,16.76]
[1672743726755,20.9,11.895,11.882,4.0]
[1672743727599,0.06610531,11.893,11.884,0.07145092]
[1672743730431,0.06610531,11.893,11.887,50.0]
[1672743730959,0.06610531,11.893,11.884,0.07145092]
[1672743732115,0.06610531,11.893,11.887,50.0]
[1672743733272,16.88610531,11.893,11.887,50.0]
[1672743733483,4.0,11.892,11.884,0.07145092]
[1672743733796,16.9,11.89,11.884,0.07145092]
[1672743734006,4.0,11.886,11.884,0.07145092]
[1672743734323,4.0,11.886,11.881,0.06805948]
[1672743734527,4.0,11.886,11.879,0.06854159]
[1672743735162,16.82,11.887,11.879,0.06854159]
[1672743735372,0.06597959,11.888,11.879,0.06854159]
[1672743744096,16.96597959,11.888,11.879,0.06854159]
[1672743747880,16.73908349,11.888,11.879,0.06854159]
[1672743748084,4.0,11.887,11.879,0.06854159]
[1672743748302,16.9,11.884,11.879,0.06854159]
[1672743748721,4.0,11.883,11.879,0.06854159]
[1672743750193,16.9,11.884,11.879,0.06854159]
[1672743751035,4.0,11.887,11.879,0.06854159]
[1672743755231,4.0,11.888,11.879,0.06854159]
[1672743755450,16.82,11.892,11.879,0.06854159]
[1672743755655,4.0,11.891,11.881,0.06982434]
[1672743762487,3.89013322,11.891,11.881,0.06982434]
[1672743771524,16.82,11.892,11.881,0.06982434]
[1672743772570,4.0,11.893,11.882,16.9]
[1672743772784,48.1131,11.894,11.883,4.0]
[1672743772997,16.82,11.895,11.884,0.06529274]
[1672743773730,4.0,11.894,11.884,0.06529274]
[1672743776251,3.85864777,11.894,11.884,0.06529274]
[1672743776884,16.9,11.892,11.884,0.06529274]
[1672743777092,4.0,11.891,11.884,0.06529274]
[1672743782868,16.79,11.889,11.884,0.06529274]
[1672743783080,4.0,11.888,11.884,0.06529274]
[1672743787282,16.79,11.889,11.884,0.06529274]
[1672743788652,16.59346671,11.889,11.884,0.06529274]
[1672743789705,16.9,11.892,11.884,0.06529274]
[1672743789908,4.0,11.891,11.884,0.06529274]
[1672743793380,16.9,11.892,11.884,0.06529274]
[1672743801159,20.9,11.896,11.884,16.96529274]
[1672743802732,16.9,11.896,11.884,16.96529274]
[1672743802939,16.9,11.899,11.886,4.0]
[1672743803154,4.0,11.898,11.888,0.06213765]
[1672743803364,3.90364581,11.898,11.888,4.06213765]
[1672743803574,4.0,11.905,11.89,4.0]
[1672743803575,16.79,11.902,11.89,4.0]
[1672743803784,4.0,11.901,11.892,0.06623626]
[1672743808932,16.79,11.902,11.892,0.06623626]
[1672743809665,20.85,11.905,11.892,0.06623626]
[1672743816708,20.66640801,11.905,11.892,4.06623626]
[1672743817022,20.66640801,11.905,11.892,0.06623626]
[1672743821545,16.85,11.898,11.892,0.06623626]
[1672743821756,4.0,11.897,11.892,0.06623626]
[1672743822492,16.73,11.895,11.892,0.06623626]
[1672743822697,4.0,11.897,11.877,46.7377]
[1672743822698,16.85,11.893,11.889,0.07096816]
[1672743822914,16.82,11.891,11.887,0.0686862]
[1672743823123,16.85,11.889,11.885,0.06752108]
[1672743823335,4.0,11.888,11.883,0.06159922]
[1672743823647,4.0,11.888,11.881,0.06772773]
[1672743825961,4.0,11.89,11.881,0.06772773]
[1672743832375,0.05470103,11.881,11.877,63.4477]
[1672743833532,4.0,11.89,11.878,4.0]
[1672743834582,4.0,11.89,11.88,0.06618909]
[1672743840885,16.88,11.891,11.88,0.06618909]
[1672743843833,4.0,11.89,11.88,0.06618909]
[1672743845727,16.75,11.888,11.88,0.06618909]
[1672743845932,4.0,11.887,11.88,0.06618909]
[1672743847925,3.92519649,11.887,11.88,0.06618909]
[1672743848352,16.88,11.889,11.88,0.06618909]
[1672743848562,4.0,11.888,11.88,0.06618909]
[1672743850975,16.88,11.889,11.88,0.06618909]
[1672743855809,4.0,11.89,11.88,0.06618909]
[1672743856020,20.88,11.892,11.88,0.06618909]
[1672743858645,16.8,11.888,11.88,0.06618909]
[1672743858853,4.0,11.887,11.88,0.06618909]
[1672743862953,3.82746051,11.887,11.88,0.06618909]
[1672743863796,16.8,11.888,11.88,0.06618909]
[1672743867580,16.88,11.89,11.88,0.06618909]
[1672743867789,4.0,11.889,11.88,0.06618909]
[1672743870735,4.0,11.892,11.88,0.06618909]
[1672743876514,3.82975508,11.892,11.88,0.06618909]
[1672743876725,3.82975508,11.892,11.88,4.06618909]
[1672743876936,3.82975508,11.892,11.88,0.06618909]
[1672743884816,4.0,11.888,11.88,0.06618909]
[1672743888181,16.88,11.889,11.88,0.06618909]
[1672743889655,16.8,11.891,11.88,0.06618909]
[1672743889862,4.0,11.89,11.88,0.06618909]
[1672743890387,3.85665387,11.89,11.88,0.06618909]
[1672743891010,16.8,11.891,11.88,0.06618909]
[1672743900897,642.82,11.907,11.885,50.0]
[1672743901098,16.88,11.896,11.892,0.07114707]
[1672743901420,4.0,11.895,11.89,0.06664489]
[1672743901631,4.0,11.895,11.888,0.06780867]
[1672743902577,16.88,11.899,11.888,0.06780867]
[1672743902788,4.0,11.898,11.889,0.07063692]
[1672743905198,3.8622497,11.898,11.889,0.07063692]
[1672743905729,16.88,11.897,11.889,0.07063692]
[1672743905933,4.0,11.896,11.889,0.07063692]
[1672743909195,16.88,11.897,11.889,0.07063692]
[1672743910874,16.8,11.899,11.889,0.07063692]
[1672743911085,4.0,11.898,11.89,0.06152224]
[1672743911295,4.0,11.898,11.888,4.0]
[1672743911821,4.0,11.898,11.887,50.0173]
[1672743912135,4.0,11.898,11.887,46.0173]
[1672743912345,0.06012966,11.897,11.888,4.06228556]
[1672743912551,0.06012966,11.897,11.888,0.06228556]
[1672743923487,4.0,11.898,11.897,0.0496278]
[1672743923691,16.8,11.899,11.897,0.0496278]
[1672743923902,4.0,11.898,11.887,46.0173]
[1672743924535,4.0,11.898,11.888,0.06178134]
[1672743924746,4.0,11.898,11.888,4.06178134]
[1672743924956,4.0,11.898,11.888,0.06178134]
[1672743929262,16.88,11.897,11.888,0.06178134]
[1672743929473,4.0,11.896,11.888,0.06178134]
[1672743932943,16.88,11.895,11.888,0.06178134]
[1672743933151,4.0,11.894,11.888,0.06178134]
[1672743934304,4.0,11.894,11.888,8.134e-05]
[1672743934521,16.88,11.892,11.888,8.134e-05]
[1672743934728,4.0,11.891,11.888,8.134e-05]
[1672743934939,4.0,11.891,11.879,46.5656]
[1672743935360,0.06547532,11.889,11.881,0.06956326]
[1672743936406,16.94547532,11.889,11.881,0.06956326]
[1672743942820,0.09694013,11.881,11.877,16.88]
[1672743943234,0.09694013,11.881,11.876,48.9891]
[1672743945868,4.013e-05,11.881,11.877,4.0]
[1672743946288,0.06320317,11.883,11.877,4.0]
[1672743946603,20.86,11.891,11.877,4.0]
[1672743947653,0.06194282,11.888,11.88,0.06454261]
[1672743954796,0.06194282,11.888,11.885,50.0]
[1672743955007,0.06653828,11.891,11.885,50.0]
[1672743955218,4.06653828,11.891,11.885,50.0]
[1672743955949,0.06653828,11.891,11.885,50.0]
[1672743956159,0.06653828,11.891,11.884,0.07119626]
[1672743957843,0.06653828,11.891,11.885,50.0]
[1672743959739,16.75,11.892,11.891,0.14451788]
[1672743960360,16.88,11.895,11.891,0.14451788]
[1672743960577,4.0,11.894,11.891,0.14451788]
[1672743962679,4.0,11.894,11.891,1.788e-05]
[1672743962890,4.0,11.894,11.888,0.06317905]
[1672743963100,16.72,11.892,11.888,0.06317905]
[1672743963310,4.0,11.891,11.888,0.06317905]
[1672743963623,4.0,11.891,11.885,50.07004927]
[1672743964149,4.0,11.891,11.885,0.07004927]
[1672743964677,16.72,11.892,11.885,50.07004927]
[1672743966881,16.72,11.892,11.885,0.07004927]
[1672743969933,16.72,11.892,11.885,50.07004927]
[1672743973398,16.72,11.892,11.885,0.07004927]
[1672743976027,16.56359877,11.892,11.885,0.07004927]
[1672743977079,16.56359877,11.892,11.885,50.07004927]
[1672743977816,16.56359877,11.892,11.885,0.07004927]
[1672743978033,16.56359877,11.892,11.885,50.07004927]
[1672743978977,16.56359877,11.892,11.885,0.07004927]
[1672743979185,16.56359877,11.892,11.885,50.07004927]
[1672743988003,16.56359877,11.892,11.885,0.07004927]
[1672743988219,16.56359877,11.892,11.885,50.07004927]
[1672743988953,16.4397517,11.892,11.885,50.07004927]
[1672743989263,16.88,11.894,11.885,50.07004927]
[1672743989479,4.0,11.893,11.885,50.0660191]
[1672743993788,16.88,11.894,11.885,50.0660191]
[1672743994623,16.88,11.894,11.885,0.0660191]
[1672743994838,16.88,11.894,11.885,50.0660191]
[1672743995785,16.88,11.894,11.885,0.0660191]
[1672743998517,16.88,11.894,11.885,50.0660191]
[1672744000938,16.88,11.894,11.885,0.0660191]
[1672744001143,16.88,11.894,11.885,50.0660191]
[1672744001357,16.6936462,11.894,11.885,50.0660191]
[1672744001564,16.6936462,11.894,11.885,0.0660191]
[1672744003246,16.6936462,11.894,11.885,50.0660191]
[1672744012708,16.6936462,11.894,11.885,0.0660191]
[1672744012917,16.6936462,11.894,11.885,50.0660191]
[1672744013437,4.0,11.901,11.885,50.0660191]
[1672744013653,16.68722417,11.895,11.889,0.06373236]
[1672744013854,4.0,11.894,11.889,0.06373236]
[1672744015857,16.68722417,11.895,11.889,0.06373236]
[1672744018381,16.82,11.897,11.889,0.06373236]